Cogmind - Beta 12 @@@ ROGUE MODE // 2023.03.23 @ 00:02:10 Player: lyrabold Result: Self-destructed Performance ------------- Evolutions (2) 1000 Regions Visited (3) 600 Robots Destroyed (2) 10 Value Destroyed (40) 40 Prototype IDs (2) 40 Alien Tech Used (0) 0 Bonus (200) 200 TOTAL SCORE: 1890 Bonus ------- Pacifist 200 Cogmind --------- Core Integrity 507/550 Matter 240/300 Energy 99/100 System Corruption 0% Temperature Cool (0) Movement Core (50) Location -8/Materials Parts ------- > --- POWER (1) -------- (None) > --- PROPULSION (4) --- Light Treads > --- UTILITY (4) ------ Advanced Visual Processing Unit Advanced Visual Processing Unit System Shield > --- WEAPON (2) ------- Maul > --- INVENTORY (5) ---- Nuclear Core Light Armor Plating Hardened Light Armor Plating Missile Launcher Missile Launcher Peak State ------------ > --- POWER ------------ (None) > --- PROPULSION ------- Light Treads > --- UTILITY ---------- Advanced Visual Processing Unit Advanced Visual Processing Unit System Shield > --- WEAPON ----------- Maul > --- INVENTORY -------- Nuclear Core Light Armor Plating Hardened Light Armor Plating Missile Launcher Missile Launcher [Rating: 13] Favorites ----------- Power None Propulsion Light Treads Treads Light Treads Utility Advanced Visual Processing Unit Processor Advanced Visual Processing Unit Hackware System Shield Weapon Maul Impact Weapon Maul Build | -11 -10 -9 -8 ------- Run | Jun Mat Mat Mat Slots Evolved 4 | . . 2 2 Power . | . . . . Propulsion 2 | . . 1 1 Utility 2 | . . 1 1 Weapon . | . . . . Parts Attached 9 | 2 . 4 3 Power . | . . . . Engine . | . . . . Core . | . . . . Reactor . | . . . . Propulsion 3 | 2 . 1 . Treads 3 | 2 . 1 . Leg . | . . . . Wheel . | . . . . Hover . | . . . . Flight . | . . . . Utility 3 | . . . 3 Device . | . . . . Storage . | . . . . Processor 2 | . . . 2 Hackware 1 | . . . 1 Protection . | . . . . Artifact . | . . . . Weapon 3 | . . 3 . Energy Gun . | . . . . Energy Cannon . | . . . . Ballistic Gun . | . . . . Ballistic Cannon . | . . . . Launcher . | . . . . Special Weapon . | . . . . Impact Weapon 3 | . . 3 . Slashing Weapon . | . . . . Piercing Weapon . | . . . . Special Melee Weapon . | . . . . Unidentified Prototypes . | . . . . Parts Lost 1 | . . 1 . Power . | . . . . Propulsion 1 | . . 1 . Utility . | . . . . Weapon . | . . . . Highest Loss Streak 1 | . . 1 . To Critical Strikes . | . . . . Average Slot Usage (%) 27 | . 28 25 32 Treads 18 | . 28 19 9 Processor 2 | . . . 10 Impact Weapon 6 | . . 6 9 Naked Turns 1 | . . 1 . Heaviest Build 3 | . . 3 3 Greatest Support 20 | 20 3 3 3 Greatest Overweight (x) . | . . . . Average Overweight (x) . | . . . . Largest Inventory Capacity 5 | 5 5 5 5 Average Capacity 5 | 5 5 5 5 Most Carried 5 | . 2 5 5 Average Carried 2 | . . 2 5 Final Capacity 5 | 5 5 5 5 Final Carried 5 | . 2 5 5 Class Distribution -------------------- 100% | Mutant Dominant Class ---------------- Mutant | -10/Materials Mutant | -9/Materials Mutant | -8/Materials Resources | -11 -10 -9 -8 ----------- Run | Jun Mat Mat Mat Matter Collected 226 | 220 . 6 . Remotely . | . . . . Salvage Created 8 | . . 8 . Parts . | . . . . Haulers Intercepted . | . . . . Recyclers Shooed . | . . . . Parts Field Recycled . | . . . . Retrieved Matter . | . . . . Parts Self-Destructed . | . . . . Prevented . | . . . . Kills | -11 -10 -9 -8 ------- Run | Jun Mat Mat Mat Combat Hostiles Destroyed 2 | . . 2 . Melee 1 | . . 1 . AOE 1 | . . 1 . Classes Destroyed 1 | . . 1 . Swarmer 2 | . . 2 . Best Kill Streak 2 | . . 2 . Combat Bots Only 2 | . . 2 . Max Kills in Single Turn 1 | . . 1 . Gunslinging . | . . . . Exploded 1 | . . 1 . Melee 1 | . . 1 . Uniques/NPCs Destroyed . | . . . . Combat | -11 -10 -9 -8 -------- Run | Jun Mat Mat Mat Damage Taken 574 | . 91 426 57 Core 246 | . 35 168 43 Absorbed by Shields . | . . . . Core Remaining (%) 81 | 100 86 58 . Volleys Fired . | . . . . Largest . | . . . . Hottest . | . . . . Shots Fired . | . . . . Gun . | . . . . Cannon . | . . . . Launcher . | . . . . Special . | . . . . Kinetic . | . . . . Thermal . | . . . . Explosive . | . . . . Electromagnetic . | . . . . Robot Hit Streak . | . . . . Robot Miss Streak . | . . . . Penetration Max . | . . . . Secondary Targets . | . . . . Shots Hit Robots 4 | . . 4 . Core Hits 3 | . . 3 . Critical Kills 1 | . . 1 . Critical Parts Destroyed . | . . . . Critical Strikes 1 | . . 1 . Smash 1 | . . 1 . Melee Attacks 6 | . . 6 . Impact 6 | . . 6 . Slashing . | . . . . Piercing . | . . . . Sneak Attacks . | . . . . Combat Hostiles . | . . . . Follow-up Attacks . | . . . . Damage Inflicted 494 | . 29 465 . Guns . | . . . . Cannons . | . . . . Explosions 283 | . . 283 . Melee 176 | . . 176 . Ramming 35 | . 29 6 . Kinetic . | . . . . Thermal . | . . . . Explosive 283 | . . 283 . Electromagnetic . | . . . . Impact 176 | . . 176 . Slashing . | . . . . Piercing . | . . . . Highest Corruption 2 | . 1 2 . Average Corruption 1 | . 1 1 . Corruption Purged . | . . . . Corruption Blocked . | . . . . Overload Shots . | . . . . Overflow Damage 97 | . . 97 . Projectiles . | . . . . Explosions 42 | . . 42 . Melee 55 | . . 55 . Knockbacks 2 | . . 2 . Impact 2 | . . 2 . Kinetic . | . . . . Secondary . | . . . . Self-Inflicted Damage 111 | . 13 98 . Shots 1 | . . 1 . Rammed 7 | . 6 1 . Targets Rammed 7 | . 6 1 . Kicked . | . . . . Crushed . | . . . . Highest Temperature . | . . . . Average Temperature . | . . . . Received Heat Transfer 159 | . 36 96 27 Siege Activations . | . . . . Robots Corrupted . | . . . . Combat Hostiles . | . . . . Parts Fried 1 | . . 1 . Impact Corruptions 2 | . . 2 . Robots Melted . | . . . . Combat Hostiles . | . . . . Parts Melted . | . . . . Heat Transferred . | . . . . Parts Sabotaged . | . . . . Parts Stolen . | . . . . Parts Stripped . | . . . . Power Chain Reactions . | . . . . Missiles Intercepted . | . . . . Alert | -11 -10 -9 -8 ------- Run | Jun Mat Mat Mat Peak Influence 199 | . 25 199 128 Initial 83 | . . 10 83 Average 69 | . 23 77 113 Maximum Alert Level . | . . . . Low Security (%) 100 | 100 100 100 100 Level 1 . | . . . . Level 2 . | . . . . Level 3 . | . . . . Level 4 . | . . . . Level 5 . | . . . . High Security . | . . . . Max Security . | . . . . Squads Dispatched 6 | . 2 2 2 Investigation 5 | . 1 2 2 Extermination . | . . . . Reinforcement 1 | . 1 . . Assault . | . . . . Garrison . | . . . . Intercept . | . . . . Searches Triggered . | . . . . Construction Impeded . | . . . . Haulers Reinforced . | . . . . Active Scanning Responses . | . . . . Cargo Convoy Interrupts . | . . . . Stealth | -11 -10 -9 -8 --------- Run | Jun Mat Mat Mat Distress Signals . | . . . . Communications Jammed . | . . . . Distress Signals . | . . . . Times Spotted 22 | . 4 14 4 Peak Tracking Total 11 | . 3 11 4 Tactical Retreats 2 | . . 2 . Traps | -11 -10 -9 -8 ------- Run | Jun Mat Mat Mat Traps Triggered 2 | . . 2 . Indirectly . | . . . . Trap Hack Attempts . | . . . . Triggered . | . . . . Disarmed . | . . . . Reprogrammed . | . . . . Reused . | . . . . Traps Extracted . | . . . . Installed . | . . . . Triggered . | . . . . Machines | -11 -10 -9 -8 ---------- Run | Jun Mat Mat Mat Machines Disabled 2 | . . 2 . Max in Single Turn 2 | . . 2 . Machines Repaired . | . . . . Machines Sabotaged . | . . . . Overloaded Fab Kills . | . . . . Hacking | -11 -10 -9 -8 --------- Run | Jun Mat Mat Mat Machines Accessed 8 | . 2 3 3 Terminals 7 | . 2 3 2 Fabricators . | . . . . Repair Stations . | . . . . Recycling Units . | . . . . Scanalyzers 1 | . . . 1 Garrison Access . | . . . . Total Hacks 27 | . 6 14 7 Successful 11 | . 3 5 3 Failed 16 | . 3 9 4 Catastrophic 6 | . . 4 2 Database Lockouts . | . . . . Manual 16 | . 2 10 4 Terminals 25 | . 6 14 5 Fabricators . | . . . . Repair Stations . | . . . . Recycling Units . | . . . . Scanalyzers 2 | . . . 2 Garrison Access . | . . . . Terminal Hacks 8 | . 3 3 2 Prototype ID Bank 1 | . 1 . . Branch Access Points 1 | . . 1 . Terminal Index 1 | . . 1 . Reinforcement Status 1 | . 1 . . Zone Layout 4 | . 1 1 2 Fabricator Hacks . | . . . . Repair Station Hacks . | . . . . Recycling Unit Hacks . | . . . . Scanalyzer . | . . . . Garrison Access Hacks . | . . . . Unauthorized Hacks 3 | . . 2 1 Terminals 2 | . . 2 . Botnet 2 | . . 2 . Fabricators . | . . . . Repair Stations . | . . . . Recycling Units . | . . . . Scanalyzers 1 | . . . 1 Extract 1 | . . . 1 Garrison Access . | . . . . Data Cores Recovered . | . . . . Used . | . . . . Hacking Detections 7 | . 2 3 2 Full Trace Events 6 | . 2 3 1 Feedback Events 2 | . . 2 . Corruption 2 | . . 2 . Feedback Blocked . | . . . . Robot Schematics Acquired . | . . . . Robots Built . | . . . . Authchips . | . . . . Time . | . . . . Total Robot Build Rating . | . . . . Part Schematics Acquired 7 | . . . 7 Parts Built . | . . . . Authchips . | . . . . Time . | . . . . Total Part Build Rating . | . . . . Parts Repaired . | . . . . Time . | . . . . Parts Recycled . | . . . . Recycled Matter . | . . . . Retrieved Matter . | . . . . Retrieved Components . | . . . . Parts Scanalyzed . | . . . . Part Schematics Acquired . | . . . . Parts Damaged . | . . . . Bothacking | -11 -10 -9 -8 ------------ Run | Jun Mat Mat Mat Used RIF Installer . | . . . . Robots Hacked . | . . . . Non-combat . | . . . . Combat . | . . . . Robot Hacks Applied . | . . . . Relay Couplers Released . | . . . . Fabnet Peak Effective % . | . . . . Robots Rewired . | . . . . Allies Hacked . | . . . . Hacks Repelled . | . . . . Allies | -11 -10 -9 -8 -------- Run | Jun Mat Mat Mat Total Allies . | . . . . Largest Group . | . . . . Highest-Rated Group . | . . . . Highest-Rated Ally . | . . . . Total Orders . | . . . . Ally Attacks . | . . . . Total Damage . | . . . . Kills . | . . . . Allies Corrupted . | . . . . Allies Melted . | . . . . Intel | -11 -10 -9 -8 ------- Run | Jun Mat Mat Mat Robot Analysis Total . | . . . . Derelict Logs Recovered . | . . . . Drone Launches . | . . . . Drone Recoveries . | . . . . Exploration | -11 -10 -9 -8 ------------- Run | Jun Mat Mat Mat Turns Passed 227 | 19 38 121 49 Spaces Moved 359 | 29 60 182 88 Core 358 | 28 60 182 88 Treads 1 | 1 . . . Legs . | . . . . Wheels . | . . . . Hover . | . . . . Flight . | . . . . Fastest Speed 50 | 50 50 50 50 Average Speed 50 | 53 50 50 50 Slowest Speed 160 | 160 50 50 50 Overloaded Moves . | . . . . Propulsion Burnouts . | . . . . Robots Hopped . | . . . . Cave-ins Triggered . | . . . . Exploration Rate (%) 16 | 2 16 29 17 Regions Visited 3 Branch Regions . Pre-discovered Areas . | . . . . Known Exits Taken . | . . . . Unknown Exits Taken 3 | 1 1 1 . Scrap Searched . | . . . . Spaces Dug 1 | . . 1 . Terrain Destroyed 1 | . . 1 . Melee 1 | . . 1 . Projectile . | . . . . AOE . | . . . . Terrain Rammed . | . . . . Walls Destroyed . | . . . . Machines Disabled . | . . . . Actions | -11 -10 -9 -8 --------- Run | Jun Mat Mat Mat Total 385 | 30 67 197 91 Wait . | . . . . Move 356 | 28 59 181 88 Hop . | . . . . Pick Up 6 | . 2 4 . Fast Attach 9 | 2 . 4 3 Attach . | . . . . Detach . | . . . . Swap . | . . . . Drop 1 | . . 1 . Fire . | . . . . Melee 6 | . . 6 . Ram 7 | . 6 1 . Kick . | . . . . Crush . | . . . . Escape Stasis . | . . . . Rewire . | . . . . Trap . | . . . . Miscellaneous . | . . . . Route ------- -11/Junkyard -10/Materials (discovered 2 exits: *Mat / [*Min]) -9/Materials (discovered 3 exits: *Mat / Min x2) -8/Materials History --------- Turn | Location | Event 12 | -11/Junkyard | Discovered new exit (range 12) 20 | -11/Junkyard | Entered Materials 56 | -10/Materials | Discovered new exit (range 3) 57 | -10/Materials | Discovered new exit (range 15) 58 | -10/Materials | Entered another Materials area 58 | -9/Materials | Evolved 2 slots: Propulsion x1, Utility x1 91 | -9/Materials | Identified exit to Mines 159 | -9/Materials | Discovered new exit (range 16) 179 | -9/Materials | Entered another Materials area 179 | -8/Materials | Evolved 2 slots: Propulsion x1, Utility x1 228 | -8/Materials | Self-destructed Last Messages --------------- EXTRACTED[ECM Suite] 00185_ ALERT: Suspicious activity at Scanalyzer M002. Dispatching Investigation squad. 00188_ Acquired Adv. Visual Processing Unit. 00196_ K-01 Serf collects debris. 00202_ Acquired System Shield. 00203_ K-01 Serf collects debris. 00207_ Connecting with Terminal... >>Layout(Zone) Retrieving Zone 6N layout... Downloaded map data. 00207_ ALERT: Suspicious activity at Terminal M001. Dispatching Investigation squad. 00207_ K-01 Serf collects debris. 00208_ Acquired Adv. Visual Processing Unit. 00228_ Connecting with Terminal... >>Layout(Zone) Retrieving Zone 8B layout... Downloaded map data. [Achievement: Superachiever] Map ----- +----------------------------------------------------+ | ??????????????????????????????????# #?????# | | ??????????????????????????????????# #?????# | | ????????????#?????????????????????###+####?????# | | ???????# ???# ???################### ######### | | ???????# ### ### ^=! | | ???????# ############# =! | | ??? + !#????????##### = | | ????? # #????????#** | | ???????### ## #????????#** "T" = | | ?????????# ??####+#####??????#[[ """ | | ?????????#!!????# #??????#[[ | | ?????????# # #??????#// | | ?????????######## !!! #??????#// #### | | ????????????????# !! #??????##### #??# | | ????????????????# !! #??????????# #??# ######+ | | ????????????????# #??????????# #??# ## | | ????????????????# #??????????# #??# ##"S | | ????????????????# #??????????# #??# ##""" | | ????????????????# #??????????# #??# ## "" | | ??????###############+###########???# #??# ## | | ? # # ##### #??# ## | | ? + # #??# ## | | ? # # ##### #??# ## | | ???############# ####### ## ##???# #??# ####### | | ???????????????# #?????# ## #????# #??? ??????? | | ???????????????# #?????#"@ + ###### #??? ??????? | | ?????????#######+#?????#T #### #??????????? | | ????????? #?????#" #??# ######??????????? | | ????????? #?????# #??# #???????????????? | | ????????? #?????######??# #???????????????? | | ????????? #??????# #????# #???????????????? | | ????????? #??????# #??### ###???#?????????? | | ????????? #??????# #??# #???#?????????? | | ????????? ########?##?# #####?????????? | | ????????? # T #?# ?????????? | | ?????????##+###### """ #?# #####?????????? | | ????????? # """ #?# #???#?????????? | | ????????? # """ #####+#######?????????? | | ????????? + ## ## ?????????? | | ?????????##+## # ## "T" ## ?????????? | | ????????? # # ## ## ?????????? | | ????????? # # # ## ?????????? | | ?????????????????????????????????????????????????? | | ?????????????????????????????????????????????????? | | ?????????????????????????????????????????????????? | | ?????????????????????????????????????????????????? | | ?????????????????????????????????????????????????? | | ?????????????????????????????????????????????????? | | ?????????????????????????????????????????????????? | | ?????????????????????????????????????????????????? | +----------------------------------------------------+ Best States ------------- Heat Dissipation 31 Energy Generation 5 Energy Capacity 100 Matter Stores 300 Matter Capacity 300 Sight Range 20 Terrain Scan Density 10 Evasion (%) 50 Defensive Hacking 10 Item Schematics ----------------- Sml. Matter Pod | -8/Materials | Extracted Aluminum Leg | -8/Materials | Extracted Assault Cannon | -8/Materials | Extracted Imp. Datajack | -8/Materials | Extracted Imp. Utility Shielding | -8/Materials | Extracted Visual Processing Unit | -8/Materials | Extracted ECM Suite | -8/Materials | Extracted Robot Schematics ------------------ None Fabricated ------------ Nothing Alien Tech Used ----------------- None Achievements -------------- Batter Up Superachiever Challenges ------------ None Game ------ Seed MassBombSink Manual? 0 Play Time 00:05:35 Cumulative 233.3 hours Start 2023.03.22 @ 23:57:35 End 2023.03.23 @ 00:02:10 Sessions 1 Manual Loads 0 Difficulty Rogue Special Mode None Game No. 134 Rogue 134 Adventurer 0 Explorer 0 Win Type - Total 10 Types 6/0/1/2/0/0/1/0/0 Lore% 77 Gallery% 81 Achievement% 75 Wizard Run 0 Options --------- ASCII 0 Keyboard 1 Movement Arrows Keybinds 0 Fullscreen 2 Font 18/X11 Map View 76x50 Tactical HUD 1 Map Filters NONE Filters NONE Steam 1 RUN: 5d98c5c2-4575-4621-a4b8-e3862e4d83bb